[Event "FIDE Women World Blitz 2021"]
[Site "Warsaw"]
[Date "2021.12.29"]
[Round "2.37"]
[White "Batsiashvili, Nino"]
[Black "Loskutova, Viktoriya"]
[Result "1/2-1/2"]
[ECO "E14"]
[WhiteElo "2491"]
[BlackElo "2195"]
[Annotator "ChessBase"]
[PlyCount "108"]
[EventDate "2021.12.29"]
[EventType "swiss"]
[EventCountry "POL"]
[Tiebreak "Cut1 Buchholz"]
[SourceTitle "playchess.com"]
[Source "ChessBase"]
[SourceQuality "1"]
[TimeControl "180+2"]

1. d4 {[%emt 0:00:01]} Nf6 {[%emt 0:00:02]} 2. c4 e6 {[%emt 0:00:00]} 3. Nf3 {
[%emt 0:00:02]} b6 {[%emt 0:00:00]} 4. Nc3 {[%emt 0:00:03]} Bb7 {[%emt 0:00:03]
} 5. e3 {[%emt 0:00:03]} d5 {[%emt 0:00:02]} 6. Bd3 {[%emt 0:00:14]} Bd6 {
[%emt 0:00:08]} 7. O-O {[%emt 0:00:04]} O-O {[%emt 0:00:04]} 8. cxd5 {[%emt 0:
00:02]} exd5 {[%emt 0:00:01]} 9. Ne5 {[%emt 0:00:01]} c5 {[%emt 0:00:13]} 10.
Bd2 {[%emt 0:00:16]} Nc6 {[%emt 0:00:04]} 11. Nxc6 {[%emt 0:00:07]} Bxc6 {
[%emt 0:00:01]} 12. h3 {[%emt 0:00:24]} Qe7 {[%emt 0:00:13]} 13. Rc1 {[%emt 0:
00:09]} Rac8 {[%emt 0:00:10]} 14. Ba6 {[%emt 0:00:27]} Rcd8 {[%emt 0:00:12]}
15. Be2 {[%emt 0:00:08]} Ne4 {[%emt 0:00:05]} 16. Nxe4 {[%emt 0:00:06]} dxe4 {
[%emt 0:00:10]} 17. Bc3 {[%emt 0:00:01]} Bd5 {[%emt 0:00:12]} 18. Qa4 {[%emt 0:
00:04]} f6 {[%emt 0:01:36]} 19. dxc5 {[%emt 0:00:06]} Bxc5 {[%emt 0:00:03]} 20.
Rfd1 {[%emt 0:00:02]} Bf7 {[%emt 0:00:05]} 21. Rxd8 {[%emt 0:00:48]} Rxd8 {
[%emt 0:00:01]} 22. Rd1 {[%emt 0:00:02]} Rxd1+ 23. Qxd1 {[%emt 0:00:02]} Qd6 {
[%emt 0:00:07]} 24. Qa4 {[%emt 0:00:06]} Qe7 {[%emt 0:00:05]} 25. Qc6 {[%emt 0:
00:03]} Bxa2 {[%emt 0:00:04]} 26. Qa8+ {[%emt 0:00:13]} Kf7 {[%emt 0:00:01]}
27. Bh5+ {[%emt 0:00:04]} g6 {[%emt 0:00:01]} 28. Be2 {[%emt 0:00:01]} Kg7 {
[%emt 0:00:01]} 29. g4 {[%emt 0:00:02]} h6 {[%emt 0:00:03]} 30. Qc6 {[%emt 0:
00:02]} Bf7 {[%emt 0:00:02]} 31. Ba6 {[%emt 0:00:05]} Bd6 {[%emt 0:00:02]} 32.
Bb7 {[%emt 0:00:02]} Bc7 {[%emt 0:00:06]} 33. h4 {[%emt 0:00:08]} Qd6 {[%emt 0:
00:02]} 34. Qxd6 {[%emt 0:00:02]} Bxd6 {[%emt 0:00:01]} 35. g5 {[%emt 0:00:01]}
hxg5 {[%emt 0:00:02]} 36. hxg5 {[%emt 0:00:01]} Be7 {[%emt 0:00:01]} 37. Bxe4 {
[%emt 0:00:02]} Bc4 {[%emt 0:00:03]} 38. Kg2 {[%emt 0:00:02]} Kf7 {[%emt 0:00:
01]} 39. gxf6 {[%emt 0:00:04]} Bxf6 {[%emt 0:00:01]} 40. Bxf6 {[%emt 0:00:02]}
Kxf6 {[%emt 0:00:01]} 41. f4 {[%emt 0:00:01]} a5 {[%emt 0:00:02]} 42. Bc6 {
[%emt 0:00:05]} g5 {[%emt 0:00:03]} 43. Kg3 {[%emt 0:00:02]} gxf4+ 44. Kxf4 {
[%emt 0:00:01]} Ke6 {[%emt 0:00:04]} 45. e4 {[%emt 0:00:02]} b5 {[%emt 0:00:01]
} 46. e5 {[%emt 0:00:06]} b4 {[%emt 0:00:02]} 47. Ke4 {[%emt 0:00:03]} Bb3 {
[%emt 0:00:03]} 48. Kd4 {[%emt 0:00:04]} a4 {[%emt 0:00:01]} 49. Bxa4 {[%emt 0:
00:00]} Bxa4 {[%emt 0:00:01]} 50. Kc4 {[%emt 0:00:01]} Kxe5 {[%emt 0:00:02]}
51. Kxb4 {[%emt 0:00:00]} Bd7 {[%emt 0:00:02]} 52. Ka5 Kd5 {[%emt 0:00:00]} 53.
b4 {[%emt 0:00:01]} Kc4 {[%emt 0:00:01]} 54. b5 {[%emt 0:00:01]} Bxb5 {[%emt 0:
00:01]} 1/2-1/2

[Event "FIDE Women World Blitz 2021"]
[Site "Warsaw"]
[Date "2021.12.29"]
[Round "2.38"]
[White "Majdan, Joanna"]
[Black "Beydullayeva, Govhar"]
[Result "1-0"]
[ECO "B53"]
[WhiteElo "2325"]
[BlackElo "2278"]
[Annotator "NA"]
[PlyCount "151"]
[EventDate "2021.12.29"]
[EventType "swiss"]
[EventCountry "POL"]
[Tiebreak "Cut1 Buchholz"]
[SourceTitle "playchess.com"]
[Source "ChessBase"]
[SourceQuality "1"]
[TimeControl "180+2"]

1. e4 {[%emt 0:00:02]} c5 {[%emt 0:00:01]} 2. Nc3 {[%emt 0:00:01]} d6 {[%emt 0:
00:03]} 3. Nf3 {[%emt 0:00:02]} Nf6 {[%emt 0:00:02]} 4. d4 {[%emt 0:00:01]}
cxd4 {[%emt 0:00:00]} 5. Qxd4 {[%emt 0:00:01]} Nc6 {[%emt 0:00:16]} 6. Bb5 {
[%emt 0:00:02]} Bd7 {[%emt 0:00:05]} 7. Bxc6 {[%emt 0:00:02]} Bxc6 {[%emt 0:00:
01]} 8. Bg5 {[%emt 0:00:01]} e6 {[%emt 0:00:15]} 9. O-O-O {[%emt 0:00:02]} Be7
{[%emt 0:00:01]} 10. Kb1 {[%emt 0:00:04]} O-O {[%emt 0:00:11]} 11. Rhe1 {
[%emt 0:00:05]} Qa5 {[%emt 0:00:35]} 12. Qd2 {[%emt 0:00:03]} Rfd8 {[%emt 0:00:
33]} 13. Nd4 {[%emt 0:00:09]} h6 {[%emt 0:00:24]} 14. Bh4 {[%emt 0:00:33]} Rac8
{[%emt 0:00:29]} 15. f3 {[%emt 0:00:28]} Kf8 {[%emt 0:00:14]} 16. Bf2 {[%emt 0:
00:06]} b5 {[%emt 0:00:04]} 17. Nxc6 {[%emt 0:00:17]} Rxc6 {[%emt 0:00:01]} 18.
Ne2 {[%emt 0:00:03]} b4 {[%emt 0:00:06]} 19. Nd4 {[%emt 0:00:01]} Ra6 {[%emt 0:
00:03]} 20. a3 {[%emt 0:00:07]} Rb8 {[%emt 0:00:04]} 21. Re3 {[%emt 0:00:24]}
bxa3 {[%emt 0:00:01]} 22. Qxa5 {[%emt 0:00:02]} Rxb2+ {[%emt 0:00:02]} 23. Kc1
{[%emt 0:00:05]} Rxa5 {[%emt 0:00:01]} 24. Rxa3 {[%emt 0:00:01]} Rxa3 {[%emt 0:
00:11]} 25. Kxb2 {[%emt 0:00:01]} d5 {[%emt 0:00:01]} 26. Nc6 {[%emt 0:00:10]}
Ra6 {[%emt 0:00:05]} 27. Nxe7 {[%emt 0:00:24]} Kxe7 {[%emt 0:00:01]} 28. Bc5+ {
[%emt 0:00:03]} Kd8 {[%emt 0:00:01]} 29. Bf8 {[%emt 0:00:02]} g6 {[%emt 0:00:
03]} 30. Bxh6 {[%emt 0:00:05]} Rb6+ {[%emt 0:00:01]} 31. Kc3 {[%emt 0:00:02]}
Kc8 {[%emt 0:00:04]} 32. Bg5 {[%emt 0:00:03]} Rc6+ {[%emt 0:00:02]} 33. Kb2 {
[%emt 0:00:02]} Rb6+ {[%emt 0:00:03]} 34. Kc1 {[%emt 0:00:03]} Nd7 {[%emt 0:00:
02]} 35. exd5 {[%emt 0:00:01]} exd5 {[%emt 0:00:01]} 36. Rxd5 {[%emt 0:00:01]}
Re6 {[%emt 0:00:02]} 37. Kd2 {[%emt 0:00:03]} Nb6 {[%emt 0:00:01]} 38. Rc5+ {
[%emt 0:00:02]} Kd7 {[%emt 0:00:01]} 39. Be3 {[%emt 0:00:03]} Rd6+ {[%emt 0:00:
02]} 40. Kc1 {[%emt 0:00:05]} Nd5 {[%emt 0:00:01]} 41. Bd2 {[%emt 0:00:02]} Ke6
{[%emt 0:00:06]} 42. Ra5 {[%emt 0:00:02]} a6 43. c4 {[%emt 0:00:02]} Nc7 {
[%emt 0:00:04]} 44. Kc2 {[%emt 0:00:04]} Rc6 {[%emt 0:00:01]} 45. Kb3 {[%emt 0:
00:04]} Ne8 {[%emt 0:00:03]} 46. Bc3 {[%emt 0:00:02]} Nd6 {[%emt 0:00:01]} 47.
Re5+ {[%emt 0:00:02]} Kd7 {[%emt 0:00:01]} 48. Rd5 {[%emt 0:00:02]} Ke6 {
[%emt 0:00:04]} 49. Re5+ {[%emt 0:00:03]} Kd7 {[%emt 0:00:01]} 50. c5 {[%emt 0:
00:02]} Nb5 {[%emt 0:00:02]} 51. Bb4 {[%emt 0:00:08]} Rc8 {[%emt 0:00:04]} 52.
Kc4 {[%emt 0:00:06]} Kc6 {[%emt 0:00:01]} 53. Re7 {[%emt 0:00:03]} f5 {[%emt 0:
00:01]} 54. Rg7 {[%emt 0:00:02]} Rd8 {[%emt 0:00:02]} 55. Rxg6+ {[%emt 0:00:01]
} Kb7 {[%emt 0:00:01]} 56. Rb6+ {[%emt 0:00:02]} Ka7 {[%emt 0:00:00]} 57. Rxb5
{[%emt 0:00:02]} axb5+ {[%emt 0:00:01]} 58. Kxb5 {[%emt 0:00:01]} Rg8 {[%emt 0:
00:06]} 59. g3 {[%emt 0:00:10]} Rb8+ {[%emt 0:00:01]} 60. Kc4 {[%emt 0:00:02]}
Rh8 {[%emt 0:00:01]} 61. c6 {[%emt 0:00:02]} Kb6 {[%emt 0:00:03]} 62. Kd5 {
[%emt 0:00:01]} Rxh2 {[%emt 0:00:04]} 63. Bc5+ {[%emt 0:00:06]} Kc7 {[%emt 0:
00:01]} 64. Bd6+ {[%emt 0:00:01]} Kc8 {[%emt 0:00:01]} 65. Ke6 {[%emt 0:00:04]}
Rf2 {[%emt 0:00:04]} 66. f4 {[%emt 0:00:01]} Rf3 {[%emt 0:00:01]} 67. Kxf5 {
[%emt 0:00:01]} Rxg3 {[%emt 0:00:01]} 68. Ke5 {[%emt 0:00:01]} Rc3 {[%emt 0:00:
01]} 69. Kd5 {[%emt 0:00:01]} Rd3+ {[%emt 0:00:01]} 70. Ke6 {[%emt 0:00:01]}
Re3+ {[%emt 0:00:03]} 71. Be5 {[%emt 0:00:01]} Rh3 {[%emt 0:00:03]} 72. f5 {
[%emt 0:00:01]} Rh6+ {[%emt 0:00:01]} 73. f6 {[%emt 0:00:01]} Rh8 {[%emt 0:00:
05]} 74. f7 {[%emt 0:00:01]} Rf8 {[%emt 0:00:02]} 75. Ke7 {[%emt 0:00:02]} Rd8
{[%emt 0:00:03]} 76. f8=Q {[%emt 0:00:01]} 1-0

[Event "FIDE Women World Blitz 2021"]
[Site "Warsaw"]
[Date "2021.12.29"]
[Round "2.39"]
[White "Jakubowska, Anna"]
[Black "Kulon, Klaudia"]
[Result "0-1"]
[ECO "B01"]
[WhiteElo "2106"]
[BlackElo "2328"]
[Annotator "NA"]
[PlyCount "112"]
[EventDate "2021.12.29"]
[EventType "swiss"]
[EventCountry "POL"]
[Tiebreak "Cut1 Buchholz"]
[SourceTitle "playchess.com"]
[Source "ChessBase"]
[SourceQuality "1"]
[TimeControl "180+2"]

1. e4 {[%emt 0:00:02]} d5 {[%emt 0:00:01]} 2. exd5 {[%emt 0:00:02]} Qxd5 {
[%emt 0:00:01]} 3. Nc3 {[%emt 0:00:02]} Qd8 {[%emt 0:00:01]} 4. Bc4 {[%emt 0:
00:02]} Nf6 {[%emt 0:00:01]} 5. d3 {[%emt 0:00:02]} g6 {[%emt 0:00:02]} 6. Nge2
{[%emt 0:00:04]} Bg7 {[%emt 0:00:01]} 7. O-O {[%emt 0:00:04]} O-O {[%emt 0:00:
02]} 8. Bg5 {[%emt 0:00:12]} h6 {[%emt 0:00:04]} 9. Bh4 {[%emt 0:00:03]} b6 {
[%emt 0:00:04]} 10. Qd2 {[%emt 0:00:22]} Bb7 {[%emt 0:00:02]} 11. Rad1 {
[%emt 0:00:04]} Nc6 {[%emt 0:00:24]} 12. d4 {[%emt 0:00:24]} e6 {[%emt 0:00:35]
} 13. Bg3 {[%emt 0:00:11]} Ne7 {[%emt 0:00:04]} 14. Nf4 {[%emt 0:00:11]} Nf5 {
[%emt 0:00:14]} 15. Bxe6 {[%emt 0:00:19]} fxe6 {[%emt 0:00:04]} 16. Nxe6 {
[%emt 0:00:01]} Qd7 {[%emt 0:00:03]} 17. Nxf8 {[%emt 0:00:05]} Rxf8 {[%emt 0:
00:01]} 18. Be5 {[%emt 0:00:06]} Kh7 {[%emt 0:00:14]} 19. f3 {[%emt 0:00:16]}
Rd8 {[%emt 0:00:08]} 20. Qf2 {[%emt 0:00:11]} Nd6 {[%emt 0:00:06]} 21. Qh4 {
[%emt 0:00:13]} Rf8 {[%emt 0:00:09]} 22. b3 {[%emt 0:00:08]} Qf5 {[%emt 0:00:
05]} 23. Qf2 {[%emt 0:00:21]} Qd7 {[%emt 0:00:32]} 24. Rfe1 {[%emt 0:00:01]}
Qc6 {[%emt 0:00:08]} 25. d5 {[%emt 0:00:09]} Qd7 {[%emt 0:00:06]} 26. Qd2 {
[%emt 0:00:07]} Qf7 {[%emt 0:00:08]} 27. Bg3 {[%emt 0:00:03]} Rd8 {[%emt 0:00:
04]} 28. Ne4 {[%emt 0:00:03]} Nxd5 {[%emt 0:00:14]} 29. Nxd6 {[%emt 0:00:03]}
cxd6 {[%emt 0:00:00]} 30. c4 {[%emt 0:00:03]} Bc3 {[%emt 0:00:02]} 31. Qe2 {
[%emt 0:00:06]} Bxe1 32. Rxe1 {[%emt 0:00:01]} Nf6 {[%emt 0:00:06]} 33. Qd3 {
[%emt 0:00:02]} Nh5 {[%emt 0:00:05]} 34. Bf2 {[%emt 0:00:02]} Nf4 {[%emt 0:00:
01]} 35. Qd4 {[%emt 0:00:02]} Ne6 {[%emt 0:00:07]} 36. Qd3 {[%emt 0:00:01]} Nc5
{[%emt 0:00:01]} 37. Qd4 {[%emt 0:00:01]} Rd7 {[%emt 0:00:02]} 38. Bh4 {
[%emt 0:00:01]} g5 {[%emt 0:00:05]} 39. Bg3 {[%emt 0:00:01]} a5 {[%emt 0:00:05]
} 40. Qc3 {[%emt 0:00:04]} Qg6 {[%emt 0:00:02]} 41. Qe3 {[%emt 0:00:03]} Rf7 {
[%emt 0:00:02]} 42. Qe8 {[%emt 0:00:01]} g4 {[%emt 0:00:03]} 43. Re7 {[%emt 0:
00:01]} Kg7 {[%emt 0:00:03]} 44. Bxd6 {[%emt 0:00:04]} Rxe7 45. Qxe7+ {[%emt 0:
00:01]} Qf7 {[%emt 0:00:05]} 46. Be5+ {[%emt 0:00:01]} Kg6 {[%emt 0:00:01]} 47.
Qd6+ {[%emt 0:00:01]} Qe6 {[%emt 0:00:00]} 48. Qb8 {[%emt 0:00:04]} Bc6 {
[%emt 0:00:01]} 49. Qh8 {[%emt 0:00:02]} gxf3 {[%emt 0:00:02]} 50. Qg7+ {
[%emt 0:00:01]} Kf5 {[%emt 0:00:00]} 51. Bd4 {[%emt 0:00:02]} Ke4 {[%emt 0:00:
01]} 52. gxf3+ {[%emt 0:00:02]} Kd3 {[%emt 0:00:02]} 53. Qh8 {[%emt 0:00:03]}
Bxf3 {[%emt 0:00:03]} 54. Bf2 {[%emt 0:00:02]} Qg6+ {[%emt 0:00:01]} 55. Kf1 {
[%emt 0:00:02]} Qg2+ {[%emt 0:00:01]} 56. Ke1 {[%emt 0:00:00]} Qh1+ {[%emt 0:
00:00]} 0-1

[Event "FIDE Women World Blitz 2021"]
[Site "Warsaw"]
[Date "2021.12.29"]
[Round "3.1"]
[White "Muzychuk, Anna"]
[Black "Mamedjarova, Zeinab"]
[Result "1-0"]
[ECO "C30"]
[WhiteElo "2533"]
[BlackElo "2249"]
[Annotator "ChessBase"]
[PlyCount "48"]
[EventDate "2021.12.29"]
[EventType "swiss"]
[EventCountry "POL"]
[Tiebreak "Cut1 Buchholz"]
[SourceTitle "playchess.com"]
[Source "ChessBase"]
[SourceQuality "1"]
[TimeControl "180+2"]

1. e4 {[%emt 0:00:01]} e5 {[%emt 0:00:01]} 2. Nc3 {[%emt 0:00:01]} d6 {[%emt 0:
00:14]} 3. f4 {[%emt 0:00:03]} exf4 {[%emt 0:00:04]} 4. Nf3 {[%emt 0:00:01]} g5
{[%emt 0:00:19]} 5. Bc4 {[%emt 0:00:01]} Bg7 {[%emt 0:00:02]} 6. O-O {[%emt 0:
00:13]} Nc6 {[%emt 0:00:14]} 7. d3 {[%emt 0:00:13]} g4 {[%emt 0:00:06]} 8. Bxf4
{[%emt 0:00:15]} h6 {[%emt 0:00:55]} 9. Nd2 {[%emt 0:00:16]} Nf6 {[%emt 0:00:
16]} 10. Bg3 {[%emt 0:00:06]} Ne5 {[%emt 0:00:37]} 11. Bxe5 {[%emt 0:00:19]}
dxe5 {[%emt 0:00:02]} 12. Qe2 {[%emt 0:00:06]} h5 {[%emt 0:00:14]} 13. Nd5 {
[%emt 0:00:09]} Be6 {[%emt 0:00:05]} 14. Nxf6+ {[%emt 0:00:10]} Bxf6 {[%emt 0:
00:00]} 15. Bxe6 {[%emt 0:00:03]} fxe6 {[%emt 0:00:01]} 16. Nc4 {[%emt 0:00:10]
} Qe7 {[%emt 0:00:02]} 17. a4 {[%emt 0:00:14]} Rf8 {[%emt 0:00:03]} 18. Qe3 {
[%emt 0:00:18]} a6 {[%emt 0:00:01]} 19. Rf2 {[%emt 0:00:30]} O-O-O {[%emt 0:00:
02]} 20. Qa7 {[%emt 0:00:02]} Bh4 {[%emt 0:00:07]} 21. Rxf8 {[%emt 0:00:05]}
Rxf8 {[%emt 0:00:04]} 22. g3 {[%emt 0:00:09]} Bg5 {[%emt 0:00:10]} 23. Nxe5 {
[%emt 0:00:04]} c6 {[%emt 0:00:03]} 24. Nc4 {[%emt 0:00:10]} Qf6 {[%emt 0:00:
08]} 1-0

[Event "FIDE Women World Blitz 2021"]
[Site "Warsaw"]
[Date "2021.12.29"]
[Round "3.1"]
[White "Loskutova, Viktoriya"]
[Black "Kashlinskaya, Alina"]
[Result "1-0"]
[ECO "C07"]
[WhiteElo "2195"]
[BlackElo "2482"]
[Annotator "ChessBase"]
[PlyCount "179"]
[EventDate "2021.12.29"]
[EventType "swiss"]
[EventCountry "POL"]
[Tiebreak "Cut1 Buchholz"]
[SourceTitle "playchess.com"]
[Source "ChessBase"]
[SourceQuality "1"]
[TimeControl "180+2"]

1. e4 {[%emt 0:00:01]} e6 {[%emt 0:00:01]} 2. d4 {[%emt 0:00:01]} d5 {[%emt 0:
00:01]} 3. Nd2 {[%emt 0:00:01]} c5 {[%emt 0:00:01]} 4. exd5 {[%emt 0:00:01]}
Qxd5 {[%emt 0:00:02]} 5. Ngf3 {[%emt 0:00:01]} cxd4 {[%emt 0:00:03]} 6. Bc4 {
[%emt 0:00:01]} Qd6 {[%emt 0:00:03]} 7. O-O {[%emt 0:00:02]} Nf6 {[%emt 0:00:
02]} 8. Nb3 {[%emt 0:00:01]} Nc6 {[%emt 0:00:02]} 9. Nbxd4 {[%emt 0:00:01]}
Nxd4 {[%emt 0:00:01]} 10. Nxd4 {[%emt 0:00:01]} Be7 {[%emt 0:00:02]} 11. Re1 {
[%emt 0:00:13]} O-O {[%emt 0:00:03]} 12. c3 {[%emt 0:00:02]} Qc7 {[%emt 0:00:
20]} 13. Qe2 {[%emt 0:00:05]} a6 {[%emt 0:00:04]} 14. Bg5 {[%emt 0:00:18]} b5 {
[%emt 0:00:11]} 15. Bb3 {[%emt 0:00:27]} Qc5 {[%emt 0:00:27]} 16. Bh4 {[%emt 0:
00:24]} Kh8 {[%emt 0:00:12]} 17. Nf3 {[%emt 0:00:34]} Bb7 {[%emt 0:00:04]} 18.
Ne5 {[%emt 0:00:21]} Rad8 {[%emt 0:00:12]} 19. Rad1 {[%emt 0:00:15]} Ne4 {
[%emt 0:00:32]} 20. Bxe7 {[%emt 0:00:09]} Qxe7 {[%emt 0:00:02]} 21. Bc2 {
[%emt 0:00:02]} Nf6 {[%emt 0:00:09]} 22. Rd3 {[%emt 0:00:19]} Rxd3 {[%emt 0:00:
36]} 23. Qxd3 {[%emt 0:00:03]} Kg8 {[%emt 0:00:06]} 24. Ng4 {[%emt 0:00:13]}
Rd8 {[%emt 0:00:02]} 25. Nxf6+ {[%emt 0:00:01]} Qxf6 {[%emt 0:00:01]} 26. Qxh7+
{[%emt 0:00:01]} Kf8 {[%emt 0:00:01]} 27. Qh8+ {[%emt 0:00:06]} Ke7 {[%emt 0:
00:00]} 28. Qh5 {[%emt 0:00:02]} Rd5 {[%emt 0:00:06]} 29. Qe2 {[%emt 0:00:03]}
Rg5 {[%emt 0:00:04]} 30. Be4 {[%emt 0:00:03]} Re5 {[%emt 0:00:03]} 31. f3 {
[%emt 0:00:18]} Bd5 {[%emt 0:00:16]} 32. Qf2 {[%emt 0:00:00]} Bxe4 {[%emt 0:00:
06]} 33. fxe4 {[%emt 0:00:00]} Qxf2+ {[%emt 0:00:09]} 34. Kxf2 {[%emt 0:00:00]}
a5 {[%emt 0:00:03]} 35. Re2 {[%emt 0:00:00]} a4 {[%emt 0:00:01]} 36. Kf3 {
[%emt 0:00:00]} Kd6 {[%emt 0:00:01]} 37. Rd2+ {[%emt 0:00:00]} Kc6 {[%emt 0:00:
00]} 38. Kf4 {[%emt 0:00:00]} f6 {[%emt 0:00:01]} 39. Rd8 {[%emt 0:00:00]} Rc5
{[%emt 0:00:05]} 40. Rc8+ {[%emt 0:00:00]} Kd6 {[%emt 0:00:01]} 41. Rb8 {
[%emt 0:00:04]} g5+ {[%emt 0:00:01]} 42. Ke3 {[%emt 0:00:01]} Ke5 {[%emt 0:00:
01]} 43. Rd8 {[%emt 0:00:03]} Rc4 {[%emt 0:00:01]} 44. Rd4 {[%emt 0:00:02]} Rc8
{[%emt 0:00:01]} 45. Rb4 {[%emt 0:00:02]} Rc5 {[%emt 0:00:01]} 46. h3 {[%emt 0:
00:02]} a3 {[%emt 0:00:01]} 47. Kd3 {[%emt 0:00:06]} axb2 {[%emt 0:00:03]} 48.
Rxb2 {[%emt 0:00:01]} Kf4 {[%emt 0:00:03]} 49. Rf2+ {[%emt 0:00:03]} Kg3 {
[%emt 0:00:09]} 50. Rxf6 {[%emt 0:00:02]} Kxg2 {[%emt 0:00:01]} 51. Rh6 {
[%emt 0:00:03]} Kg3 {[%emt 0:00:02]} 52. Kd4 {[%emt 0:00:01]} Rc4+ {[%emt 0:00:
01]} 53. Kd3 {[%emt 0:00:01]} Rc5 {[%emt 0:00:01]} 54. Kd4 {[%emt 0:00:03]}
Rc4+ {[%emt 0:00:00]} 55. Kd3 {[%emt 0:00:02]} Rc5 {[%emt 0:00:01]} 56. a3 {
[%emt 0:00:02]} e5 {[%emt 0:00:05]} 57. Rh8 {[%emt 0:00:03]} Rc7 {[%emt 0:00:
00]} 58. Rh5 {[%emt 0:00:01]} Rd7+ {[%emt 0:00:00]} 59. Ke3 {[%emt 0:00:01]}
Rg7 {[%emt 0:00:00]} 60. Rh6 {[%emt 0:00:02]} Rc7 {[%emt 0:00:00]} 61. Kd3 {
[%emt 0:00:01]} Ra7 {[%emt 0:00:03]} 62. Rh5 {[%emt 0:00:02]} Kf4 {[%emt 0:00:
01]} 63. Rh8 {[%emt 0:00:03]} Rxa3 {[%emt 0:00:01]} 64. Rb8 {[%emt 0:00:03]}
Kg3 {[%emt 0:00:01]} 65. Rxb5 {[%emt 0:00:01]} Kxh3 {[%emt 0:00:02]} 66. Rxe5 {
[%emt 0:00:01]} g4 {[%emt 0:00:00]} 67. Rh5+ {[%emt 0:00:01]} Kg2 {[%emt 0:00:
01]} 68. e5 {[%emt 0:00:03]} Ra5 {[%emt 0:00:01]} 69. Ke4 {[%emt 0:00:01]} g3 {
[%emt 0:00:01]} 70. Rg5 {[%emt 0:00:02]} Kf2 {[%emt 0:00:01]} 71. Rf5+ {
[%emt 0:00:02]} Ke2 {[%emt 0:00:01]} 72. Rg5 {[%emt 0:00:01]} Ra4+ {[%emt 0:00:
04]} 73. Kd5 {[%emt 0:00:01]} Kf3 {[%emt 0:00:01]} 74. Rf5+ {[%emt 0:00:02]}
Kg4 {[%emt 0:00:06]} 75. Rf1 {[%emt 0:00:01]} g2 {[%emt 0:00:02]} 76. Rg1 {
[%emt 0:00:02]} Ra2 {[%emt 0:00:11]} 77. e6 {[%emt 0:00:03]} Kf5 {[%emt 0:00:
05]} 78. e7 {[%emt 0:00:03]} Re2 {[%emt 0:00:03]} 79. Rxg2 {[%emt 0:00:01]}
Rxe7 {[%emt 0:00:01]} 80. Rf2+ {[%emt 0:00:01]} Kg5 {[%emt 0:00:01]} 81. c4 {
[%emt 0:00:01]} Rd7+ {[%emt 0:00:04]} 82. Kc6 {[%emt 0:00:02]} Rd1 {[%emt 0:00:
01]} 83. c5 {[%emt 0:00:00]} Kg6 {[%emt 0:00:02]} 84. Kc7 {[%emt 0:00:02]} Rc1
{[%emt 0:00:01]} 85. c6 {[%emt 0:00:00]} Kg7 {[%emt 0:00:00]} 86. Kb7 {[%emt 0:
00:03]} Rb1+ {[%emt 0:00:02]} 87. Kc8 {[%emt 0:00:01]} Rc1 {[%emt 0:00:01]} 88.
c7 {[%emt 0:00:01]} Kg6 {[%emt 0:00:00]} 89. Rb2 {[%emt 0:00:03]} Kf6 {[%emt 0:
00:02]} 90. Kb8 {[%emt 0:00:01]} 1-0

[Event "FIDE Women World Blitz 2021"]
[Site "Warsaw"]
[Date "2021.12.29"]
[Round "3.2"]
[White "Mammadova, Gulnar"]
[Black "Batsiashvili, Nino"]
[Result "1-0"]
[ECO "B00"]
[WhiteElo "2395"]
[BlackElo "2491"]
[Annotator "ChessBase"]
[PlyCount "83"]
[EventDate "2021.12.29"]
[EventType "swiss"]
[EventCountry "POL"]
[Tiebreak "Cut1 Buchholz"]
[SourceTitle "playchess.com"]
[Source "ChessBase"]
[SourceQuality "1"]
[TimeControl "180+2"]

1. e4 {[%emt 0:00:01]} b6 2. d4 {[%emt 0:00:05]} Bb7 {[%emt 0:00:01]} 3. Bd3 {
[%emt 0:00:01]} e6 {[%emt 0:00:01]} 4. Nf3 {[%emt 0:00:07]} Nf6 {[%emt 0:00:02]
} 5. Qe2 {[%emt 0:00:04]} d5 {[%emt 0:00:03]} 6. e5 {[%emt 0:00:07]} Ne4 {
[%emt 0:00:03]} 7. Nbd2 {[%emt 0:00:10]} Nxd2 {[%emt 0:00:18]} 8. Bxd2 {
[%emt 0:00:01]} Be7 {[%emt 0:00:13]} 9. c3 {[%emt 0:00:04]} a5 {[%emt 0:00:09]}
10. a4 {[%emt 0:00:01]} Ba6 {[%emt 0:00:03]} 11. O-O {[%emt 0:00:07]} Bxd3 {
[%emt 0:00:03]} 12. Qxd3 {[%emt 0:00:02]} O-O {[%emt 0:00:19]} 13. g3 {[%emt 0:
00:05]} c5 {[%emt 0:00:05]} 14. h4 {[%emt 0:00:04]} h6 {[%emt 0:00:30]} 15. Be3
{[%emt 0:00:08]} Qc8 {[%emt 0:00:06]} 16. Qd2 {[%emt 0:00:04]} Nd7 {[%emt 0:00:
23]} 17. Kg2 {[%emt 0:00:17]} f6 {[%emt 0:00:26]} 18. exf6 {[%emt 0:00:01]}
Rxf6 {[%emt 0:00:09]} 19. Bf4 {[%emt 0:00:12]} Qf8 {[%emt 0:00:08]} 20. Nh2 {
[%emt 0:00:21]} Rf7 {[%emt 0:00:18]} 21. Rae1 {[%emt 0:00:03]} Bxh4 {[%emt 0:
00:01]} 22. Rxe6 {[%emt 0:00:04]} Bf6 {[%emt 0:00:05]} 23. Rfe1 {[%emt 0:00:11]
} cxd4 {[%emt 0:00:02]} 24. Bd6 {[%emt 0:00:16]} dxc3 {[%emt 0:00:05]} 25. Qxd5
{[%emt 0:00:02]} Qc8 {[%emt 0:00:06]} 26. Re7 {[%emt 0:00:19]} Bxe7 {[%emt 0:
00:04]} 27. Rxe7 {[%emt 0:00:02]} Qf8 {[%emt 0:00:04]} 28. Rxd7 {[%emt 0:00:08]
} Qe8 29. Rxf7 {[%emt 0:00:06]} Qxf7 {[%emt 0:00:01]} 30. Qxa8+ {[%emt 0:00:02]
} Kh7 {[%emt 0:00:00]} 31. Qe4+ {[%emt 0:00:01]} Kg8 {[%emt 0:00:01]} 32. bxc3
{[%emt 0:00:02]} Qb3 {[%emt 0:00:01]} 33. Be5 {[%emt 0:00:07]} Qe6 {[%emt 0:00:
02]} 34. Nf3 {[%emt 0:00:01]} Qd7 {[%emt 0:00:02]} 35. Qg6 {[%emt 0:00:03]} Qe7
{[%emt 0:00:01]} 36. Qxb6 {[%emt 0:00:04]} Qf7 {[%emt 0:00:01]} 37. Qxa5 {
[%emt 0:00:04]} Kh7 {[%emt 0:00:01]} 38. Qa8 {[%emt 0:00:02]} Qf5 {[%emt 0:00:
02]} 39. Qb7 {[%emt 0:00:02]} Qg6 {[%emt 0:00:00]} 40. Qxg7+ {[%emt 0:00:02]}
Qxg7 {[%emt 0:00:01]} 41. Bxg7 {[%emt 0:00:01]} Kxg7 {[%emt 0:00:00]} 42. Nd4 {
[%emt 0:00:01]} 1-0